[Event "58th Akiba Rubinstein D 2022"]
[Site "Polanica-Zdroj"]
[Date "2022.08.17"]
[Round "5.20"]
[White "Milczarek, Robert"]
[Black "Wilgosz, Tomasz"]
[Result "1/2-1/2"]
[ECO "D50"]
[WhiteElo "1653"]
[BlackElo "1513"]
[Annotator "NA RC"]
[PlyCount "136"]
[EventDate "2022.08.13"]
[EventCountry "POL"]
[SourceTitle "playchess.com"]
[Source "ChessBase"]
[SourceQuality "1"]
[TimeControl "40/5400+30:1800+30"]

1. d4 {[%emt 0:00:04]} e6 {[%emt 0:00:22]} 2. c4 {[%emt 0:00:12]} d5 {[%emt 0:00:10]} 3. Nc3 {[%emt 0:00:08]} Nf6 {[%emt 0:00:12]} 4. Bg5 {[%emt 0:00:41]} Bb4 {[%emt 0:00:57]} 5. cxd5 {[%emt 0:01:27]} exd5 {[%emt 0:00:13]} 6. e3 {[%emt 0:00:51]} c6 {[%emt 0:00:46]} 7. Bd3 {[%emt 0:00:23]} O-O {[%emt 0:02:22]} 8. Nge2 {[%emt 0:03:18]} Bg4 9. Qc2 {[%emt 0:05:16]} Bxe2 {[%emt 0:09:59]} 10. Qxe2 {[%emt 0:07:13]} Qa5 {[%emt 0:03:34]} 11. O-O {[%emt 0:01:28]} Nbd7 12. Rfc1 {[%emt 0:07:15]} Bxc3 {[%emt 0:07:42]} 13. bxc3 {[%emt 0:04:49]} Ne4 {[%emt 0:01:04]} 14. Be7 {[%emt 0:02:37]} Rfe8 {[%emt 0:04:08]} 15. Bb4 {[%emt 0:00:53]} Qc7 {[%emt 0:02:18]} 16. c4 {[%emt 0:06:53]} Ndf6 {[%emt 0:06:55]} 17. cxd5 {[%emt 0:07:31]} Nxd5 {[%emt 0:00:39]} 18. Be1 {[%emt 0:02:30]} Nef6 {[%emt 0:02:11]} 19. Qf3 {[%emt 0:04:46]} Qe7 {[%emt 0:03:16]} 20. Rab1 {[%emt 0:01:25]} Rad8 {[%emt 0:03:06]} 21. h3 {[%emt 0:06:48]} Rd6 {[%emt 0:03:41]} 22. Qg3 {[%emt 0:03:57]} Re6 {[%emt 0:07:55]} 23. Bf5 {[%emt 0:07:09]} Ne4 {[%emt 0:08:04]} 24. Qf3 {[%emt 0:01:47]} Rf6 {[%emt 0:01:39]} 25. Qxe4 {[%emt 0:00:21]} Qxe4 {[%emt 0:03:38]} 26. Bxe4 {[%emt 0:00:06]} Rxe4 {[%emt 0:00:12]} 27. Rxb7 {[%emt 0:00:16]} g5 {[%emt 0:00:28]} 28. Rxa7 {[%emt 0:01:01]} g4 {[%emt 0:00:31]} 29. hxg4 {[%emt 0:01:18]} Rxg4 {[%emt 0:00:47]} 30. Ra6 {[%emt 0:02:28]} Rgg6 {[%emt 0:00:34]} 31. a4 {[%emt 0:01:32]} h5 {[%emt 0:02:35]} 32. Bd2 {[%emt 0:01:46]} Nc7 {[%emt 0:01:15]} 33. Ra7 {[%emt 0:00:59]} Nd5 {[%emt 0:01:15]} 34. e4 {[%emt 0:03:47]} Nf4 {[%emt 0:00:49]} 35. Bxf4 {[%emt 0:00:37]} Rxf4 {[%emt 0:00:02]} 36. Ra8+ {[%emt 0:02:44]} Kg7 {[%emt 0:00:27]} 37. Rc3 {[%emt 0:06:17]} Rxe4 {[%emt 0:00:43]} 38. Rd3 {[%emt 0:01:41]} Re1+ {[%emt 0:00:56]} 39. Kh2 {[%emt 0:00:11]} Re2 {[%emt 0:00:36]} 40. Rf3 {[%emt 0:00:47]} Rd2 {[%emt 0:00:54]} 41. Ra7 {[%emt 0:30:57]} Rf6 {[%emt 0:30:21]} 42. Rxf6 {[%emt 0:01:09]} Kxf6 {[%emt 0:00:02]} 43. Ra6 Rxf2 {[%emt 0:04:05]} 44. Rxc6+ {[%emt 0:01:22]} Ke7 {[%emt 0:00:37]} 45. a5 {[%emt 0:00:34]} Rd2 {[%emt 0:02:06]} 46. Rc5 {[%emt 0:01:32]} Rxd4 {[%emt 0:00:15]} 47. Rxh5 {[%emt 0:00:17]} Ra4 {[%emt 0:00:23]} 48. Rb5 {[%emt 0:00:37]} Kf8 {[%emt 0:04:09]} 49. Rb8+ {[%emt 0:00:20]} Kg7 {[%emt 0:00:06]} 50. Ra8 {[%emt 0:00:06]} Ra2 {[%emt 0:00:29]} 51. a6 {[%emt 0:00:08]} Ra3 {[%emt 0:00:17]} 52. a7 {[%emt 0:00:07]} Ra2 {[%emt 0:00:13]} 53. Kg3 {[%emt 0:01:00]} Ra4 {[%emt 0:02:06]} 54. Kf3 {[%emt 0:00:34]} Ra2 {[%emt 0:00:25]} 55. Kf4 {[%emt 0:00:30]} Ra4+ {[%emt 0:00:23]} 56. Ke5 {[%emt 0:00:42]} Ra5+ {[%emt 0:00:24]} 57. Kd6 {[%emt 0:00:30]} Ra2 {[%emt 0:00:14]} 58. Kc5 {[%emt 0:00:55]} Ra1 {[%emt 0:00:28]} 59. Kd6 {[%emt 0:01:37]} Ra2 {[%emt 0:00:43]} 60. Ke5 {[%emt 0:00:38]} Ra5+ {[%emt 0:00:10]} 61. Kf4 {[%emt 0:00:29]} Ra4+ {[%emt 0:00:11]} 62. Kg3 {[%emt 0:00:24]} Ra2 {[%emt 0:00:13]} 63. Kh3 {[%emt 0:00:27]} Ra1 {[%emt 0:00:16]} 64. g4 {[%emt 0:00:27]} Ra2 {[%emt 0:00:47]} 65. Kh4 {[%emt 0:01:02]} Ra1 {[%emt 0:00:04]} 66. Kg5 {[%emt 0:00:45]} Ra2 {[%emt 0:00:42]} 67. Kf5 {[%emt 0:00:39]} Ra5+ {[%emt 0:00:27]} 68. Ke4 {[%emt 0:00:20]} Ra4+ {[%emt 0:00:04]} 1/2-1/2

[Event "58th Akiba Rubinstein D 2022"]
[Site "Polanica-Zdroj"]
[Date "2022.08.17"]
[Round "5.21"]
[White "Litwin, Tomasz"]
[Black "Misiek, Stanislaw"]
[Result "0-1"]
[ECO "A00"]
[WhiteElo "1580"]
[BlackElo "1427"]
[Annotator "NA RC"]
[PlyCount "135"]
[EventDate "2022.08.13"]
[EventCountry "POL"]
[SourceTitle "playchess.com"]
[Source "ChessBase"]
[SourceQuality "1"]
[TimeControl "40/5400+30:1800+30"]

1. b4 {[%emt 0:00:04]} d5 {[%emt 0:03:43]} 2. Bb2 {[%emt 0:00:03]} Bf5 {[%emt 0:01:50]} 3. e3 {[%emt 0:00:57]} e6 {[%emt 0:01:30]} 4. c4 {[%emt 0:00:02]} Nf6 {[%emt 0:03:08]} 5. b5 {[%emt 0:00:03]} Be7 {[%emt 0:03:49]} 6. Nf3 {[%emt 0:01:13]} h6 {[%emt 0:02:26]} 7. Be2 {[%emt 0:02:22]} O-O {[%emt 0:03:13]} 8. O-O {[%emt 0:02:47]} a6 {[%emt 0:05:32]} 9. a4 {[%emt 0:00:02]} Bh7 {[%emt 0:13:10]} 10. d4 {[%emt 0:02:24]} c5 {[%emt 0:03:40]} 11. Nbd2 {[%emt 0:14:47]} Nbd7 {[%emt 0:04:20]} 12. Qb3 {[%emt 0:00:53]} Bd6 {[%emt 0:04:43]} 13. Ba3 {[%emt 0:01:36]} Qe7 {[%emt 0:04:24]} 14. Rfc1 {[%emt 0:03:16]} axb5 {[%emt 0:03:33]} 15. axb5 {[%emt 0:00:06]} g5 {[%emt 0:02:20]} 16. g3 {[%emt 0:05:02]} Ne4 {[%emt 0:02:03]} 17. cxd5 {[%emt 0:01:21]} g4 {[%emt 0:01:00]} 18. Nxe4 {[%emt 0:12:52]} Bxe4 {[%emt 0:00:33]} 19. Nd2 {[%emt 0:00:07]} Bxd5 {[%emt 0:04:14]} 20. Qd1 {[%emt 0:00:24]} Rxa3 {[%emt 0:06:03]} 21. Rxa3 {[%emt 0:02:13]} cxd4 {[%emt 0:00:10]} 22. Ra4 {[%emt 0:00:44]} dxe3 {[%emt 0:03:49]} 23. Rxg4+ {[%emt 0:00:32]} Kh7 {[%emt 0:00:11]} 24. fxe3 {[%emt 0:03:58]} f5 {[%emt 0:01:14]} 25. Rh4 {[%emt 0:05:51]} Rg8 {[%emt 0:02:40]} 26. Kf2 {[%emt 0:02:39]} Qg5 {[%emt 0:04:37]} 27. Nf1 {[%emt 0:01:38]} Nc5 {[%emt 0:02:01]} 28. Bd3 {[%emt 0:09:06]} Nb3 {[%emt 0:02:39]} 29. Rc3 {[%emt 0:02:36]} Qxh4 {[%emt 0:04:11]} 30. gxh4 {[%emt 0:01:02]} Rg2+ {[%emt 0:00:06]} 31. Ke1 {[%emt 0:00:04]} Bb4 {[%emt 0:00:19]} 32. Bxf5+ {[%emt 0:07:43]} Kh8 {[%emt 0:05:07]} 33. Qd3 {[%emt 0:00:39]} Bf3 {[%emt 0:00:55]} 34. Qd8+ {[%emt 0:04:07]} Kg7 {[%emt 0:00:41]} 35. Qd7+ {[%emt 0:00:05]} Kf8 {[%emt 0:00:21]} 36. Qc8+ {[%emt 0:07:45]} Kg7 {[%emt 0:00:39]} 37. Bd3 {[%emt 0:00:05]} Nc1 {[%emt 0:01:11]} 38. Qd7+ {[%emt 0:00:49]} Kf8 {[%emt 0:00:21]} 39. Qd4 {[%emt 0:00:23]} Nxd3+ {[%emt 0:01:16]} 40. Qxd3 {[%emt 0:00:04]} Bxc3+ {[%emt 0:00:22]} 41. Qxc3 {[%emt 0:30:10]} Re2+ {[%emt 0:30:12]} 42. Kd1 {[%emt 0:00:48]} Rxe3+ {[%emt 0:00:26]} 43. Kd2 {[%emt 0:00:25]} Rxc3 {[%emt 0:00:06]} 44. Kxc3 {[%emt 0:00:04]} Be2 {[%emt 0:00:14]} 45. Ne3 {[%emt 0:00:40]} Bxb5 {[%emt 0:00:12]} 46. Kd4 {[%emt 0:00:57]} Ke7 {[%emt 0:00:49]} 47. Ke5 {[%emt 0:00:02]} Be2 {[%emt 0:00:20]} 48. Nc2 {[%emt 0:00:14]} b5 {[%emt 0:00:25]} 49. Nd4 {[%emt 0:00:09]} Bc4 {[%emt 0:00:10]} 50. Nc6+ Kf7 {[%emt 0:00:22]} 51. Nb4 {[%emt 0:02:00]} Kg6 {[%emt 0:00:13]} 52. Kf4 {[%emt 0:00:14]} h5 {[%emt 0:00:40]} 53. Ke5 {[%emt 0:00:12]} Kf7 {[%emt 0:00:28]} 54. Nc6 {[%emt 0:00:18]} Ke8 {[%emt 0:01:07]} 55. Kd6 {[%emt 0:00:05]} Kf8 {[%emt 0:00:45]} 56. Nb4 {[%emt 0:00:10]} Kg7 {[%emt 0:00:23]} 57. Ke5 {[%emt 0:00:03]} Kg6 {[%emt 0:00:33]} 58. Nc6 {[%emt 0:00:25]} Kf7 {[%emt 0:01:25]} 59. Nb4 {[%emt 0:00:05]} Be2 {[%emt 0:00:29]} 60. Nc6 {[%emt 0:00:20]} Bg4 {[%emt 0:00:14]} 61. Nb4 {[%emt 0:01:04]} Bf3 {[%emt 0:00:17]} 62. Nd3 {[%emt 0:00:15]} Ke7 {[%emt 0:00:31]} 63. Nb4 {[%emt 0:00:03]} Kd7 {[%emt 0:00:14]} 64. Nd3 {[%emt 0:00:28]} Bg4 {[%emt 0:00:26]} 65. Nb4 {[%emt 0:00:04]} Kc7 {[%emt 0:00:08]} 66. Nd3 {[%emt 0:01:06]} Kb6 {[%emt 0:00:08]} 67. Kd6 {[%emt 0:00:19]} Bf5 {[%emt 0:00:45]} 68. Nb4 {[%emt 0:00:31]} 0-1

[Event "58th Akiba Rubinstein D 2022"]
[Site "Polanica-Zdroj"]
[Date "2022.08.17"]
[Round "5.23"]
[White "Ursnik, Patryk"]
[Black "Stachowiak, Bruno"]
[Result "1/2-1/2"]
[ECO "C47"]
[WhiteElo "1671"]
[BlackElo "1462"]
[Annotator "NA RC"]
[PlyCount "48"]
[EventDate "2022.08.13"]
[EventCountry "POL"]
[SourceTitle "playchess.com"]
[Source "ChessBase"]
[SourceQuality "1"]
[TimeControl "40/5400+30:1800+30"]

1. e4 {[%emt 0:12:56]} e5 {[%emt 0:00:35]} 2. Nf3 {[%emt 0:00:05]} Nc6 {[%emt 0:00:30]} 3. Nc3 {[%emt 0:00:10]} Nf6 {[%emt 0:00:41]} 4. d4 {[%emt 0:00:03]} exd4 {[%emt 0:01:48]} 5. Nxd4 {[%emt 0:00:04]} Bb4 {[%emt 0:03:45]} 6. Nxc6 {[%emt 0:00:14]} bxc6 {[%emt 0:00:18]} 7. Bd3 {[%emt 0:00:03]} d6 {[%emt 0:03:06]} 8. O-O {[%emt 0:02:29]} h6 {[%emt 0:04:52]} 9. h3 {[%emt 0:00:13]} O-O {[%emt 0:00:28]} 10. Qf3 {[%emt 0:00:15]} Re8 {[%emt 0:03:53]} 11. a3 {[%emt 0:02:15]} Bxc3 {[%emt 0:00:25]} 12. bxc3 {[%emt 0:00:05]} Nd7 {[%emt 0:04:25]} 13. Qg3 {[%emt 0:00:49]} Qf6 14. f4 {[%emt 0:06:48]} Qxc3 {[%emt 0:07:30]} 15. Rb1 {[%emt 0:00:14]} Qf6 {[%emt 0:14:49]} 16. e5 {[%emt 0:18:53]} Qe7 {[%emt 0:04:26]} 17. Bb2 {[%emt 0:02:37]} dxe5 {[%emt 0:00:48]} 18. Rbe1 {[%emt 0:02:41]} Qf8 {[%emt 0:02:33]} 19. fxe5 {[%emt 0:13:17]} Nc5 {[%emt 0:00:20]} 20. e6 {[%emt 0:13:41]} Rxe6 {[%emt 0:00:49]} 21. Qxc7 {[%emt 0:10:39]} Nxd3 {[%emt 0:01:35]} 22. cxd3 {[%emt 0:01:58]} Rxe1 {[%emt 0:01:15]} 23. Rxe1 {[%emt 0:00:07]} Bf5 {[%emt 0:01:03]} 24. Qxc6 {[%emt 0:01:36]} Bxd3 {[%emt 0:00:49]} 1/2-1/2

[Event "58th Akiba Rubinstein D 2022"]
[Site "Polanica-Zdroj"]
[Date "2022.08.17"]
[Round "5.24"]
[White "Jankowski, Franciszek"]
[Black "Grzelak, Piotr"]
[Result "0-1"]
[ECO "D35"]
[WhiteElo "1483"]
[BlackElo "1684"]
[Annotator "NA RC"]
[PlyCount "91"]
[EventDate "2022.08.13"]
[EventCountry "POL"]
[SourceTitle "playchess.com"]
[Source "ChessBase"]
[SourceQuality "1"]
[TimeControl "40/5400+30:1800+30"]

1. d4 e6 {[%emt 0:10:11]} 2. c4 {[%emt 0:01:30]} d5 {[%emt 0:00:02]} 3. Nc3 {[%emt 0:00:13]} Nf6 {[%emt 0:00:02]} 4. cxd5 {[%emt 0:01:24]} exd5 {[%emt 0:00:11]} 5. Bg5 {[%emt 0:00:10]} Be7 {[%emt 0:00:14]} 6. Qc2 {[%emt 0:02:36]} c6 {[%emt 0:01:33]} 7. e3 {[%emt 0:00:09]} O-O {[%emt 0:01:55]} 8. Bd3 {[%emt 0:00:10]} h6 {[%emt 0:00:13]} 9. Bh4 {[%emt 0:03:33]} Re8 {[%emt 0:01:09]} 10. Nge2 {[%emt 0:01:06]} Bg4 {[%emt 0:00:52]} 11. f3 {[%emt 0:02:16]} Be6 {[%emt 0:02:10]} 12. Bf2 {[%emt 0:05:44]} Nbd7 {[%emt 0:00:28]} 13. O-O {[%emt 0:24:38]} c5 {[%emt 0:00:51]} 14. Qd2 {[%emt 0:03:20]} Rc8 {[%emt 0:00:30]} 15. Rae1 {[%emt 0:01:26]} a6 {[%emt 0:03:41]} 16. e4 {[%emt 0:01:12]} dxe4 {[%emt 0:00:43]} 17. fxe4 {[%emt 0:00:10]} cxd4 {[%emt 0:00:41]} 18. Nxd4 {[%emt 0:02:02]} Ne5 {[%emt 0:01:37]} 19. Be2 {[%emt 0:05:21]} Bb4 {[%emt 0:09:32]} 20. Qc2 {[%emt 0:10:35]} Nfg4 {[%emt 0:17:46]} 21. Nxe6 {[%emt 0:06:25]} Rxe6 {[%emt 0:00:40]} 22. Rd1 {[%emt 0:01:51]} Qg5 {[%emt 0:04:05]} 23. Bxg4 {[%emt 0:08:59]} Nxg4 {[%emt 0:01:01]} 24. Rd5 {[%emt 0:01:59]} Re5 {[%emt 0:04:26]} 25. Rxe5 {[%emt 0:07:01]} Qxe5 {[%emt 0:00:21]} 26. Bg3 {[%emt 0:02:42]} Qc5+ {[%emt 0:00:20]} 27. Bf2 {[%emt 0:00:28]} Nxf2 {[%emt 0:00:39]} 28. Qxf2 {[%emt 0:00:57]} Qxf2+ {[%emt 0:04:59]} 29. Kxf2 {[%emt 0:00:25]} Bxc3 {[%emt 0:00:08]} 30. bxc3 {[%emt 0:00:08]} Rxc3 {[%emt 0:00:04]} 31. Rb1 {[%emt 0:01:45]} Rc2+ {[%emt 0:00:36]} 32. Kf3 {[%emt 0:00:07]} b5 {[%emt 0:02:14]} 33. a4 {[%emt 0:01:17]} bxa4 {[%emt 0:02:24]} 34. Rb6 {[%emt 0:00:20]} a3 {[%emt 0:00:12]} 35. Rxa6 {[%emt 0:00:04]} a2 {[%emt 0:00:09]} 36. h4 {[%emt 0:01:10]} Kf8 {[%emt 0:00:16]} 37. Ra7 {[%emt 0:00:09]} g6 {[%emt 0:00:30]} 38. g3 {[%emt 0:02:33]} Ke8 {[%emt 0:00:13]} 39. Kf4 {[%emt 0:00:19]} Kd8 {[%emt 0:01:20]} 40. g4 {[%emt 0:02:05]} Kc8 {[%emt 0:00:29]} 41. h5 {[%emt 0:30:35]} g5+ {[%emt 0:30:17]} 42. Ke5 {[%emt 0:01:05]} Kb8 {[%emt 0:00:35]} 43. Ra3 {[%emt 0:00:18]} Rf2 {[%emt 0:00:23]} 44. Ra7 Rc2 45. Ra3 Rf2 46. Kd6 0-1

[Event "58th Akiba Rubinstein D 2022"]
[Site "Polanica-Zdroj"]
[Date "2022.08.17"]
[Round "5.25"]
[White "Kuska, Bartosz"]
[Black "Markiewicz, Jacek"]
[Result "0-1"]
[ECO "A53"]
[WhiteElo "1432"]
[BlackElo "1610"]
[Annotator "NA RC"]
[PlyCount "86"]
[EventDate "2022.08.13"]
[EventCountry "POL"]
[SourceTitle "playchess.com"]
[Source "ChessBase"]
[SourceQuality "1"]
[TimeControl "40/5400+30:1800+30"]

1. d4 Nf6 {[%emt 0:00:06]} 2. c4 {[%emt 0:00:09]} d6 {[%emt 0:00:03]} 3. Nc3 {[%emt 0:00:31]} e5 {[%emt 0:00:04]} 4. dxe5 {[%emt 0:00:37]} dxe5 {[%emt 0:00:05]} 5. Qxd8+ {[%emt 0:00:12]} Kxd8 {[%emt 0:00:04]} 6. Bg5 {[%emt 0:00:19]} c6 {[%emt 0:00:12]} 7. Nf3 {[%emt 0:01:19]} Nbd7 {[%emt 0:01:36]} 8. a3 {[%emt 0:05:16]} a5 {[%emt 0:00:42]} 9. e3 {[%emt 0:05:33]} Kc7 {[%emt 0:01:35]} 10. Be2 {[%emt 0:04:53]} Ne8 {[%emt 0:01:37]} 11. Bh4 {[%emt 0:06:26]} f6 {[%emt 0:01:06]} 12. Bg3 {[%emt 0:00:36]} Nd6 {[%emt 0:04:56]} 13. Rc1 {[%emt 0:03:56]} Nf5 {[%emt 0:04:21]} 14. Nd2 {[%emt 0:01:59]} h5 {[%emt 0:00:30]} 15. e4 {[%emt 0:07:20]} Nd4 {[%emt 0:05:40]} 16. f4 {[%emt 0:04:02]} h4 {[%emt 0:02:09]} 17. Bf2 {[%emt 0:00:15]} Nxe2 {[%emt 0:19:39]} 18. Nxe2 {[%emt 0:00:20]} Nc5 {[%emt 0:00:20]} 19. Rc3 {[%emt 0:06:09]} Bg4 {[%emt 0:09:15]} 20. Be3 {[%emt 0:21:51]} Rd8 {[%emt 0:07:00]} 21. Bxc5 {[%emt 0:12:21]} Bxc5 {[%emt 0:00:37]} 22. Nb3 {[%emt 0:09:21]} Bd4 23. Nexd4 {[%emt 0:01:31]} exd4 {[%emt 0:08:18]} 24. Rd3 {[%emt 0:02:48]} Rhe8 {[%emt 0:01:51]} 25. Nd2 {[%emt 0:00:44]} Bf5 26. Kf2 {[%emt 0:03:12]} Bxe4 {[%emt 0:01:46]} 27. Nxe4 {[%emt 0:00:16]} Rxe4 {[%emt 0:00:14]} 28. Kf3 {[%emt 0:00:23]} f5 {[%emt 0:02:24]} 29. g4 {[%emt 0:00:37]} hxg3 {[%emt 0:08:01]} 30. hxg3 {[%emt 0:00:14]} Rde8 {[%emt 0:01:13]} 31. Rh7 {[%emt 0:00:38]} Re3+ {[%emt 0:04:00]} 32. Rxe3 {[%emt 0:00:01]} Rxe3+ {[%emt 0:00:15]} 33. Kf2 {[%emt 0:00:13]} Re7 {[%emt 0:01:18]} 34. b4 {[%emt 0:02:20]} d3 {[%emt 0:04:52]} 35. b5 cxb5 {[%emt 0:03:02]} 36. cxb5 {[%emt 0:00:54]} Kb6 {[%emt 0:00:15]} 37. a4 {[%emt 0:00:20]} d2 {[%emt 0:00:09]} 38. Rh1 {[%emt 0:00:14]} Re1 {[%emt 0:00:20]} 39. Rxe1 {[%emt 0:00:45]} dxe1=Q+ {[%emt 0:00:10]} 40. Kxe1 {[%emt 0:00:02]} Kc5 {[%emt 0:00:16]} 41. Kd2 {[%emt 0:30:15]} Kb4 {[%emt 0:30:18]} 42. Kd3 {[%emt 0:00:03]} Kxa4 {[%emt 0:00:09]} 43. Kc4 {[%emt 0:00:07]} b6 {[%emt 0:00:12]} 0-1

[Event "58th Akiba Rubinstein D 2022"]
[Site "Polanica-Zdroj"]
[Date "2022.08.17"]
[Round "5.26"]
[White "Blasiak, Miroslaw"]
[Black "Rychlik, Michal"]
[Result "0-1"]
[ECO "C18"]
[WhiteElo "1608"]
[BlackElo "1354"]
[Annotator "NA RC"]
[PlyCount "60"]
[EventDate "2022.08.13"]
[EventCountry "POL"]
[SourceTitle "playchess.com"]
[Source "ChessBase"]
[SourceQuality "1"]
[TimeControl "40/5400+30:1800+30"]

1. e4 {[%emt 0:10:02]} e6 {[%emt 0:00:22]} 2. d4 {[%emt 0:00:09]} d5 {[%emt 0:00:02]} 3. Nc3 {[%emt 0:00:15]} Bb4 {[%emt 0:01:06]} 4. e5 {[%emt 0:00:39]} c5 {[%emt 0:00:13]} 5. a3 {[%emt 0:02:39]} Bxc3+ {[%emt 0:00:10]} 6. bxc3 {[%emt 0:00:06]} Ne7 {[%emt 0:00:15]} 7. Qg4 {[%emt 0:03:39]} O-O {[%emt 0:00:06]} 8. Bd3 {[%emt 0:06:37]} f5 {[%emt 0:00:05]} 9. exf6 {[%emt 0:11:21]} Rxf6 10. Qh5 {[%emt 0:33:57]} h6 {[%emt 0:00:38]} 11. Nf3 {[%emt 0:06:58]} c4 {[%emt 0:05:39]} 12. Be2 {[%emt 0:02:03]} Qa5 {[%emt 0:07:32]} 13. Bd2 {[%emt 0:05:34]} Nbc6 14. g4 {[%emt 0:09:55]} Bd7 {[%emt 0:08:54]} 15. g5 {[%emt 0:00:30]} hxg5 {[%emt 0:06:25]} 16. Nxg5 {[%emt 0:01:38]} Rh6 {[%emt 0:04:18]} 17. Qg4 {[%emt 0:01:41]} Rd8 {[%emt 0:02:09]} 18. Rg1 {[%emt 0:00:30]} e5 {[%emt 0:00:54]} 19. Qg2 {[%emt 0:00:33]} Nf5 {[%emt 0:02:06]} 20. Bg4 {[%emt 0:00:47]} exd4 {[%emt 0:03:02]} 21. cxd4 {[%emt 0:00:26]} c3 {[%emt 0:01:42]} 22. Bf4 {[%emt 0:00:52]} Ncxd4 {[%emt 0:00:43]} 23. Rc1 Nh4 {[%emt 0:05:07]} 24. Qg3 {[%emt 0:00:44]} Re8+ {[%emt 0:02:53]} 25. Kd1 {[%emt 0:00:18]} Bxg4+ {[%emt 0:04:09]} 26. Qxg4 {[%emt 0:00:03]} Qa6 {[%emt 0:03:05]} 27. Be3 {[%emt 0:00:59]} Ndf5 {[%emt 0:03:06]} 28. Bf4 {[%emt 0:00:47]} d4 {[%emt 0:00:39]} 29. Re1 {[%emt 0:00:42]} Rd8 {[%emt 0:01:07]} 30. Qe2 {[%emt 0:00:34]} Ne3+ {[%emt 0:01:03]} 0-1

[Event "58th Akiba Rubinstein D 2022"]
[Site "Polanica-Zdroj"]
[Date "2022.08.17"]
[Round "5.27"]
[White "Krygiel, Konrad"]
[Black "Pietryk, Joanna"]
[Result "1-0"]
[ECO "B12"]
[WhiteElo "1603"]
[BlackElo "1417"]
[Annotator "NA RC"]
[PlyCount "50"]
[EventDate "2022.08.13"]
[EventCountry "POL"]
[SourceTitle "playchess.com"]
[Source "ChessBase"]
[SourceQuality "1"]
[TimeControl "40/5400+30:1800+30"]

1. e4 {[%emt 0:04:06]} c6 {[%emt 0:00:13]} 2. d4 {[%emt 0:00:54]} d5 {[%emt 0:00:15]} 3. e5 {[%emt 0:00:10]} Bf5 {[%emt 0:00:23]} 4. h4 {[%emt 0:00:11]} h6 5. g4 {[%emt 0:02:49]} Bg6 {[%emt 0:03:41]} 6. h5 {[%emt 0:08:36]} Bh7 {[%emt 0:00:20]} 7. Bd3 {[%emt 0:01:39]} Bxd3 {[%emt 0:00:41]} 8. Qxd3 {[%emt 0:00:02]} e6 {[%emt 0:01:16]} 9. Nf3 {[%emt 0:05:25]} Nd7 {[%emt 0:13:02]} 10. Nbd2 {[%emt 0:17:25]} c5 11. c4 {[%emt 0:08:43]} cxd4 {[%emt 0:03:59]} 12. cxd5 {[%emt 0:01:22]} exd5 {[%emt 0:05:26]} 13. Qxd4 Nc5 {[%emt 0:01:57]} 14. O-O {[%emt 0:25:10]} Ne6 {[%emt 0:02:07]} 15. Qa4+ {[%emt 0:00:43]} Qd7 {[%emt 0:00:36]} 16. Qxd7+ {[%emt 0:00:03]} Kxd7 {[%emt 0:00:08]} 17. Nb3 {[%emt 0:00:12]} Ne7 {[%emt 0:02:02]} 18. Rd1 {[%emt 0:00:17]} Rd8 {[%emt 0:02:00]} 19. Be3 {[%emt 0:00:48]} b6 {[%emt 0:00:58]} 20. a4 {[%emt 0:00:56]} Kc7 {[%emt 0:01:40]} 21. a5 {[%emt 0:01:03]} Kb7 {[%emt 0:00:54]} 22. Nbd4 {[%emt 0:01:49]} Nxd4 {[%emt 0:02:44]} 23. Nxd4 {[%emt 0:00:16]} Nc6 {[%emt 0:01:31]} 24. Nf3 Ne7 25. Nd4 Nc6 1-0

[Event "58th Akiba Rubinstein D 2022"]
[Site "Polanica-Zdroj"]
[Date "2022.08.17"]
[Round "5.28"]
[White "Paziewski, Marcin"]
[Black "Rosa, Antoni"]
[Result "0-1"]
[ECO "D09"]
[WhiteElo "1413"]
[BlackElo "1598"]
[Annotator "NA RC"]
[PlyCount "79"]
[EventDate "2022.08.13"]
[EventCountry "POL"]
[SourceTitle "playchess.com"]
[Source "ChessBase"]
[SourceQuality "1"]
[TimeControl "40/5400+30:1800+30"]

1. d4 {[%emt 0:00:15]} d5 {[%emt 0:00:09]} 2. c4 {[%emt 0:00:28]} e5 {[%emt 0:00:11]} 3. dxe5 {[%emt 0:03:16]} d4 {[%emt 0:00:23]} 4. Nf3 {[%emt 0:01:37]} Nc6 {[%emt 0:00:15]} 5. g3 {[%emt 0:03:02]} Nge7 {[%emt 0:01:59]} 6. Bg2 {[%emt 0:03:07]} Ng6 {[%emt 0:00:57]} 7. O-O {[%emt 0:06:16]} Ngxe5 {[%emt 0:05:10]} 8. Nxe5 {[%emt 0:15:03]} Nxe5 9. Qc2 {[%emt 0:05:58]} Be7 {[%emt 0:10:13]} 10. Rd1 {[%emt 0:07:23]} O-O {[%emt 0:02:11]} 11. c5 {[%emt 0:04:42]} c6 {[%emt 0:04:23]} 12. Be3 {[%emt 0:03:11]} dxe3 {[%emt 0:04:59]} 13. Rxd8 {[%emt 0:00:56]} exf2+ {[%emt 0:00:04]} 14. Kxf2 {[%emt 0:03:49]} Rxd8 {[%emt 0:07:38]} 15. h3 {[%emt 0:16:14]} b6 {[%emt 0:01:49]} 16. cxb6 {[%emt 0:01:26]} axb6 {[%emt 0:00:15]} 17. Nd2 Bc5+ {[%emt 0:01:17]} 18. Kf1 {[%emt 0:03:13]} Be6 {[%emt 0:04:54]} 19. a3 {[%emt 0:03:45]} Rxd2 {[%emt 0:14:09]} 20. Qxd2 {[%emt 0:03:18]} Nc4 {[%emt 0:00:05]} 21. Qc1 {[%emt 0:03:43]} Ne3+ {[%emt 0:05:29]} 22. Kg1 {[%emt 0:00:08]} Nc2+ {[%emt 0:00:29]} 23. Kh2 {[%emt 0:00:52]} Nxa1 {[%emt 0:00:24]} 24. Qxa1 {[%emt 0:00:01]} Rd8 {[%emt 0:01:43]} 25. Qc1 {[%emt 0:02:06]} h5 {[%emt 0:03:11]} 26. Qg5 {[%emt 0:02:13]} Rd1 {[%emt 0:00:56]} 27. Bxc6 {[%emt 0:01:38]} Rf1 {[%emt 0:01:05]} 28. e3 {[%emt 0:01:55]} Rf2+ {[%emt 0:04:29]} 29. Kg1 {[%emt 0:00:32]} Rxb2 {[%emt 0:01:21]} 30. Qd8+ {[%emt 0:01:38]} Kh7 {[%emt 0:00:01]} 31. Qd3+ {[%emt 0:00:53]} g6 {[%emt 0:00:33]} 32. Bd7 {[%emt 0:02:08]} Rb3 {[%emt 0:01:10]} 33. Qd1 {[%emt 0:01:02]} Rxe3 {[%emt 0:02:59]} 34. Kg2 Bc4 {[%emt 0:01:32]} 35. g4 {[%emt 0:01:15]} h4 {[%emt 0:01:43]} 36. Bc6 {[%emt 0:00:35]} Re2+ {[%emt 0:03:53]} 37. Kh1 Re3 {[%emt 0:03:13]} 38. Kg2 {[%emt 0:00:34]} Rxa3 {[%emt 0:02:01]} 39. Qd8 {[%emt 0:00:13]} Ra2+ {[%emt 0:01:37]} 40. Kh1 {[%emt 0:00:38]} 0-1